bitfinex/quotes_ETHUSD_20240823
["timestamp","ask_amount","ask_price","bid_price","bid_amount"]
[1724417682652,6.2945033,2673.1,2673.0,0.13767991]
[1724417682932,2.5535333,2673.1,2672.2,6.18629]
[1724417683132,0.1274333,2673.1,2672.8,3.74132]
[1724417683358,0.1274333,2673.1,2672.9,3.74124]
[1724417683567,0.1274333,2673.1,2672.9,0.13729312]
[1724417685036,0.1274333,2673.1,2672.7,3.74141]
[1724417685246,0.1274333,2673.1,2673.0,0.13718105]
[1724417685555,0.1274333,2673.1,2673.0,3.87829105]
[1724417686423,0.1274333,2673.1,2673.0,10.61940105]
[1724417689585,0.1274333,2673.1,2673.0,12.87730105]
[1724417693302,0.1274333,2673.1,2673.0,10.61940105]
[1724417693809,0.1274333,2673.1,2673.0,6.87829105]
[1724417693976,0.1274333,2673.1,2673.0,3.13718105]
[1724417694187,4.12530663,2673.1,2673.0,0.13718105]
[1724417694512,4.12530663,2673.1,2672.3,3.74201]
[1724417694513,3.74126,2672.9,2672.3,3.74201]
[1724417694688,3.74126,2672.9,2672.4,3.74193]
[1724417694877,3.74126,2672.9,2672.4,3.87941388]
[1724417695077,4.75017681,2673.1,2672.4,3.87941388]
[1724417695280,6.18585,2672.9,2672.4,0.13748388]
[1724417695472,2.4445,2672.9,2672.4,3.87933388]
[1724417695678,2.4445,2672.9,2672.4,6.87933388]
[1724417695979,0.1274333,2673.1,2672.6,3.74157]
[1724417696524,0.1274333,2673.1,2672.7,0.13740552]
[1724417697029,0.75870063,2673.1,2672.7,0.13740552]
[1724417698041,0.75870063,2673.1,2672.7,3.87884552]
[1724417699000,0.75870063,2673.1,2672.7,0.13740552]
[1724417699589,0.75870063,2673.1,2672.7,3.87883552]
[1724417699853,0.1274333,2673.1,2672.7,3.87883552]
[1724417700193,0.1274333,2673.1,2672.8,3.74138]
[1724417700391,0.1274333,2673.1,2672.9,3.74124]
[1724417700631,0.1274333,2673.1,2672.9,3.87839555]
[1724417701232,0.1274333,2673.1,2673.0,7.48222]
[1724417701829,0.1274333,2673.1,2673.0,7.61925058]
[1724417704448,0.1274333,2673.1,2673.0,9.94085058]
[1724417705350,0.1274333,2673.1,2673.0,0.13703058]
[1724417705944,0.1274333,2673.1,2673.0,0.13703916]
[1724417706246,0.1274333,2673.1,2672.8,3.0]
[1724417706399,0.1274333,2673.1,2673.0,0.13703916]
[1724417706595,0.1274333,2673.1,2672.9,0.13715123]
[1724417706998,0.1274333,2673.1,2673.0,0.13661155]
[1724417707495,0.1274333,2673.1,2673.0,0.13664165]
[1724417707696,0.1274333,2673.1,2672.8,10.48278]
[1724417707899,0.1274333,2673.1,2672.9,0.13675372]
[1724417709343,0.1274333,2673.1,2672.9,3.87799372]
[1724417711994,0.1274333,2673.1,2673.0,3.74111]
[1724417712194,0.1274333,2673.1,2673.0,7.48222]
[1724417712391,0.1274333,2673.1,2673.0,7.61890894]
[1724417714363,0.1274333,2673.1,2673.0,3.87779894]
[1724417718241,0.1274333,2673.1,2673.0,7.61890894]
[1724417719142,0.1274333,2673.1,2673.0,10.61890894]
[1724417720151,0.1274333,2673.1,2673.0,6.87779894]
[1724417724128,0.1274333,2673.1,2673.0,3.13668894]
[1724417724327,0.1274333,2673.1,2673.0,0.13668894]
[1724417727873,0.89582665,2673.1,2672.7,3.74152]
[1724417728031,0.89582665,2673.1,2673.0,0.13674485]
[1724417728234,0.89582665,2673.1,2672.7,3.74152]
[1724417728430,0.89582665,2673.1,2673.0,0.13674485]
[1724417728637,0.89582665,2673.1,2672.7,3.74145]
[1724417729295,0.89582665,2673.1,2672.8,0.136969]
[1724417729671,0.89582665,2673.1,2672.7,3.74143]
[1724417729977,0.89582665,2673.1,2672.9,0.13685692]
[1724417730197,0.89582665,2673.1,2672.8,0.136969]
[1724417730334,6.21575,2672.9,2672.5,10.49]
[1724417730679,6.21575,2672.9,2672.6,3.0]
[1724417730832,2.4745,2672.9,2672.6,3.0]
[1724417731236,2.4745,2672.9,2672.7,0.13708109]
[1724417731442,2.4830333,2673.1,2672.7,3.87850109]
[1724417731778,2.4830333,2673.1,2672.7,3.91362727]
[1724417732981,3.10540763,2673.1,2672.7,3.87989711]
[1724417733472,6.84638763,2673.1,2672.7,0.13847711]
[1724417733672,6.92125781,2673.1,2672.7,0.13847711]
[1724417734682,6.84638763,2673.1,2672.7,0.13847711]
[1724417736439,10.66233781,2673.1,2672.7,0.13847711]
[1724417736643,4.80744378,2673.0,2672.7,0.13847711]
[1724417736964,2.2671,2672.9,2672.7,0.13847711]
[1724417737170,2.2671,2672.9,2672.5,7.49]
[1724417737384,6.00837,2672.9,2672.6,0.17133555]
[1724417737703,2.2671,2672.9,2672.6,0.17133555]
[1724417738489,2.79728908,2672.9,2672.6,0.17133555]
[1724417740781,6.53863908,2672.9,2672.6,0.17133555]
[1724417740945,6.61348926,2672.9,2672.6,0.17133555]
[1724417741283,2.79728908,2672.9,2672.3,3.742]
[1724417741514,2.79728908,2672.9,2672.7,0.17136834]
[1724417741644,0.76046629,2672.8,2672.5,3.7418]
[1724417741868,0.76046629,2672.8,2672.3,7.48396]
[1724417742066,0.76046629,2672.8,2672.4,3.74194]
[1724417742307,0.76046629,2672.8,2672.3,3.74196]
[1724417742465,0.76046629,2672.8,2672.4,3.74191]
[1724417742670,0.76046629,2672.8,2672.3,3.74196]
[1724417742871,0.76046629,2672.8,2672.4,3.74195]
[1724417743068,0.76046629,2672.8,2672.3,7.48396]
[1724417743272,0.76046629,2672.8,2672.3,3.74196]
[1724417743916,0.76046629,2672.8,2672.3,7.48396]
[1724417744120,0.76046629,2672.8,2672.3,3.74196]
[1724417744420,0.76046629,2672.8,2671.9,2.3142]
[1724417744421,3.74204,2672.4,2671.9,2.3142]
[1724417744591,3.81691018,2672.4,2671.9,6.05685]
[1724417744795,3.81691018,2672.4,2671.9,6.05677]
[1724417744993,0.07487018,2672.4,2671.9,6.05677]
[1724417745187,6.06382,2672.5,2671.9,6.05677]
[1724417745387,7.17423018,2672.5,2672.0,3.74249]
[1724417745999,7.09936,2672.5,2672.0,3.74249]
[1724417746213,4.29161,2672.7,2672.1,0.17204893]
[1724417746521,4.29161,2672.7,2672.2,3.7422]
[1724417746809,4.29161,2672.7,2672.3,0.17182203]
[1724417747192,4.29161,2672.7,2672.2,3.7422]
[1724417747513,8.03322,2672.7,2672.4,0.17170859]
[1724417747710,8.03322,2672.7,2672.2,3.7422]
[1724417747711,1.046752,2672.6,2672.3,0.17182203]
[1724417748021,4.788432,2672.6,2672.4,0.17170859]
[1724417748394,1.046752,2672.6,2672.2,3.74222]
[1724417748711,4.86329218,2672.6,2672.5,0.17159517]
[1724417748913,4.86329218,2672.6,2672.1,3.74236]
[1724417749113,9.82033018,2672.6,2672.5,0.17159517]
[1724417749319,7.48435,2672.3,2671.8,6.74268]
[1724417749535,7.48435,2672.3,2671.8,3.74268]
[1724417749833,7.48435,2672.3,2671.9,0.17227586]
[1724417749834,6.11755,2672.2,2671.9,0.17227586]
[1724417749997,3.74251,2672.0,2671.9,0.17227586]
[1724417750196,3.74251,2672.0,2671.4,3.74324]
[1724417750520,3.74251,2672.0,2671.9,0.17227586]
[1724417750832,3.74251,2672.0,2671.2,3.74363]
[1724417750833,3.74297,2671.7,2671.2,3.74363]
[1724417751037,2.3753,2671.8,2671.2,3.74363]
[1724417751541,3.7432,2671.6,2671.1,4.52178965]
[1724417751744,3.74321,2671.5,2671.1,0.77804965]
[1724417751953,2.4702,2671.4,2671.1,0.77804965]
[1724417752602,0.07487018,2671.3,2671.1,0.77804965]
[1724417752998,0.07487018,2671.3,2671.0,3.7439]
[1724417754335,0.07487018,2671.3,2670.7,3.0]
[1724417754336,0.25450702,2671.2,2670.7,3.74425]
[1724417754536,0.3293772,2671.2,2670.7,3.74425]
[1724417755437,4.0730172,2671.2,2670.6,3.74439]
[1724417755741,4.0730172,2671.2,2670.6,3.74437]
[1724417756036,4.52544172,2671.1,2670.6,3.74437]
[1724417756240,5.99672,2671.0,2670.4,7.48927]
[1724417756546,4.6003119,2671.1,2669.8,0.17778813]
[1724417756547,2.4656,2670.9,2669.8,0.17778813]
[1724417756717,2.4656,2670.9,2669.3,3.74623]
[1724417756718,3.74526,2670.1,2669.3,3.74623]
[1724417756959,2.4656,2670.4,2669.7,3.7456]
[1724417757131,2.4656,2670.4,2669.7,9.94373]
[1724417757329,3.74491,2670.3,2669.8,0.17075493]
[1724417757646,3.74491,2670.3,2669.7,2.4525]
[1724417757819,3.74491,2670.3,2669.9,0.17065842]
[1724417758014,4.365961,2670.3,2669.8,0.17077207]
[1724417758214,4.365961,2670.3,2670.0,0.17054478]
[1724417758428,4.365961,2670.3,2669.9,0.17074843]
[1724417758735,4.365961,2670.3,2670.1,0.17052116]
[1724417758931,4.365961,2670.3,2669.7,6.19815]
[1724417758932,4.365961,2670.3,2670.0,0.17086201]
[1724417759134,4.365961,2670.3,2670.2,0.17063476]
[1724417759469,8.110981,2670.3,2670.2,0.17063476]
[1724417759648,8.110981,2670.3,2669.7,6.19815]
[1724417759649,4.365961,2670.3,2669.7,6.19815]
[1724417759805,3.74491,2670.3,2670.2,0.17063476]
[1724417760151,3.74491,2670.3,2669.7,6.19813]
[1724417760353,3.74491,2670.3,2670.2,0.17063476]
[1724417760531,3.74491,2670.3,2669.7,2.4525]
[1724417760532,4.29491,2670.3,2669.7,6.19812]
[1724417760746,3.74491,2670.3,2670.2,0.17063476]
[1724417760910,4.740429,2670.3,2669.7,6.19812]
[1724417761240,4.740429,2670.3,2669.5,6.74594]
[1724417761241,0.07487018,2670.2,2669.5,3.0]
[1724417761445,0.07487018,2670.2,2669.4,2.324]
[1724417761446,4.2953,2670.1,2669.8,0.1710893]
[1724417761653,4.2953,2670.1,2669.5,3.0]
[1724417761817,4.2953,2670.1,2669.9,0.17097136]
[1724417762004,1.354023,2670.1,2669.5,6.74592]
[1724417762212,0.55,2670.1,2670.0,0.17085772]
[1724417762464,0.55,2670.1,2669.7,3.0]
[1724417762609,4.29519,2670.1,2670.0,0.17086201]
[1724417762970,4.29519,2670.1,2669.2,3.74638]
[1724417762971,6.09836,2670.0,2669.2,3.74638]
[1724417763105,0.73970618,2669.9,2669.2,3.74638]
[1724417763471,3.74569,2669.8,2669.1,6.19366]
[1724417763605,0.07487018,2669.7,2669.0,3.74668]
[1724417764003,6.09898,2669.6,2668.8,14.07556688]
[1724417764237,0.07487018,2669.5,2668.8,6.194]
[1724417764438,3.74616,2669.4,2668.8,3.7469]
[1724417764613,0.07487018,2669.3,2668.8,3.7469]
[1724417765021,0.07487018,2669.3,2668.6,3.74723]
[1724417765022,3.82126018,2669.3,2668.6,3.74717]
[1724417765377,4.37132018,2669.2,2668.6,3.74717]
[1724417765664,5.1830682,2669.2,2668.6,3.74717]
[1724417766014,4.37132018,2669.2,2668.6,3.74717]
[1724417766660,0.62487018,2669.2,2668.7,6.74704]
[1724417766962,3.74616,2669.4,2668.8,3.74688]
[1724417767174,0.07487018,2669.3,2668.8,3.74688]
[1724417768664,3.74616,2669.4,2668.8,7.49379]
[1724417768962,6.09892,2669.6,2668.9,3.74682]
[1724417768963,3.74602,2669.5,2668.9,3.74682]
[1724417769175,0.55,2669.4,2668.9,3.74682]
[1724417769478,0.55,2669.4,2669.0,3.74671]
[1724417769766,0.62487018,2669.4,2668.8,3.74688]
[1724417770255,4.37105018,2669.4,2668.8,3.74688]
[1724417771050,4.29618,2669.4,2668.8,3.74688]
[1724417771230,5.4341394,2669.4,2668.8,3.74688]
[1724417771756,3.005836,2669.9,2668.8,2.3457]
[1724417771953,2.341,2669.9,2669.1,3.74653]
[1724417772313,6.08654,2669.9,2669.3,3.74626]
[1724417772716,3.7456,2669.8,2669.3,3.74626]
[1724417773074,3.7456,2669.8,2669.1,3.74653]
[1724417773075,3.74511,2670.2,2669.1,3.0]
[1724417773295,3.74506,2670.2,2669.7,3.74565]
[1724417773555,0.607736,2670.1,2669.5,7.49185]
[1724417773724,0.607736,2670.1,2669.6,3.74583]
[1724417774574,4.352946,2670.1,2669.5,3.74598]
[1724417775232,3.74535,2670.0,2669.5,3.74598]
[1724417776228,3.74506,2670.2,2669.7,3.74572]
[1724417776568,2.3323,2670.3,2669.8,3.0]
[1724417776569,6.07732,2670.3,2669.8,3.0]
[1724417776859,6.07732,2670.3,2669.8,6.91768283]
[1724417776860,2.3323,2670.3,2669.8,6.91768283]
[1724417777196,3.74483,2670.4,2669.9,3.74545]
[1724417777320,3.74494,2670.3,2669.8,3.17209283]
[1724417777676,2.4287,2670.1,2669.9,0.17195774]
[1724417777976,6.17389,2670.1,2669.9,0.17195774]
[1724417778267,3.74531,2670.0,2669.9,0.17195774]
[1724417778475,3.82018018,2670.0,2669.9,0.17195774]
[1724417778624,4.8195852,2670.0,2669.5,3.74601]
[1724417778824,3.74494,2670.3,2669.9,0.17170457]
[1724417779018,3.74494,2670.3,2669.8,3.74559]
[1724417779231,3.353706,2670.4,2669.9,3.74543]
[1724417779232,7.098486,2670.4,2669.9,3.74543]
[1724417779559,7.098486,2670.4,2669.9,3.9170831]
[1724417779802,7.098486,2670.4,2669.9,0.1716531]
[1724417779923,4.8292376,2670.3,2669.8,3.74558]
[1724417780122,3.74504,2670.2,2669.7,3.74572]
[1724417780317,4.8292376,2670.3,2669.8,0.17179248]
[1724417780758,4.8292376,2670.3,2669.7,7.49138]
[1724417780924,2.3619,2670.4,2669.9,3.91698883]
[1724417781125,2.3619,2670.4,2669.9,3.74531]
[1724417781321,2.3619,2670.4,2670.0,0.17153946]
[1724417781523,6.10674,2670.4,2670.0,0.17153946]
[1724417782543,3.74489,2670.3,2670.0,0.17153946]
[1724417782838,3.74517,2670.1,2669.5,3.74592]
[1724417783041,3.74517,2670.1,2669.6,6.7458]
[1724417783235,0.55,2670.2,2669.7,3.74569]
[1724417783436,0.55,2670.2,2669.7,7.49135]
[1724417783680,0.55,2670.2,2669.8,3.74556]
[1724417784620,2.3619,2670.4,2670.1,3.74515]
[1724417784785,6.18748,2670.7,2670.1,7.4903]
[1724417785115,6.18748,2670.7,2670.2,3.74502]
[1724417785317,9.93192,2670.7,2670.1,3.74515]
[1724417785463,0.618748,2670.6,2670.1,3.74515]
[1724417786199,4.363298,2670.6,2670.1,3.74515]
[1724417786519,2.285,2670.4,2669.8,3.74556]
[1724417786815,3.74522,2670.1,2669.6,3.0]
[1724417787021,2.35987018,2670.0,2669.6,3.0]
[1724417787197,2.35987018,2670.0,2669.5,3.74593]
[1724417787567,3.74546,2669.9,2669.3,6.74618]
[1724417787770,0.07487018,2669.8,2669.4,3.0]
[1724417787993,0.07487018,2669.8,2669.4,6.74614]
[1724417788193,4.35613302,2669.8,2669.3,3.74628]
[1724417788510,0.61053302,2669.8,2669.3,3.74628]
[1724417788817,0.61053302,2669.8,2669.4,3.74615]
[1724417789173,6.10522018,2670.0,2669.4,3.74615]
[1724417790010,6.10522018,2670.0,2669.5,3.74601]
[1724417790581,2.35987018,2670.0,2669.5,3.74601]
[1724417790779,2.285,2670.0,2669.5,7.49194]
[1724417791212,2.285,2670.0,2669.6,0.17178886]
[1724417791718,2.888022,2670.0,2669.6,0.17178886]
[1724417792728,3.74548,2669.9,2669.6,0.17178886]
[1724417792891,3.82035018,2669.9,2669.6,0.17178886]
[1724417793092,3.82035018,2669.9,2669.4,3.74612]
[1724417793295,0.07487018,2669.9,2669.7,0.17169666]
[1724417793522,1.1202114,2669.9,2669.4,3.74612]
[1724417793723,1.04534122,2669.9,2669.8,0.171583]
[1724417793930,1.04534122,2669.9,2669.5,3.74601]
[1724417794233,2.285,2670.0,2669.7,3.74564]
[1724417794606,2.285,2670.0,2669.8,0.17176314]
[1724417794993,2.285,2670.0,2669.9,0.17164091]
[1724417795191,2.285,2670.0,2669.7,3.74564]
[1724417795503,3.74506,2670.2,2669.8,0.17175456]
[1724417795504,2.4039,2670.2,2669.8,0.17175456]
[1724417795706,0.29539,2670.1,2669.8,0.17175456]
[1724417796037,0.29539,2670.1,2669.7,3.74564]
[1724417796176,2.4039,2670.2,2669.9,3.91701091]
[1724417796381,2.4039,2670.2,2669.9,3.91700091]
[1724417796623,3.74477,2670.4,2669.9,0.17164091]
[1724417796921,3.74477,2670.4,2669.7,3.74566]
[1724417797122,0.07487018,2670.3,2670.0,0.17149296]
[1724417797332,0.68229718,2670.3,2669.7,3.74566]
[1724417797496,3.74504,2670.2,2670.1,0.17137933]
[1724417797697,6.05854,2670.2,2669.7,3.74566]
[1724417798029,6.05854,2670.2,2670.1,0.17137933]
[1724417798224,6.05854,2670.2,2669.7,7.49131]
[1724417798225,3.3545737,2670.2,2669.7,7.49131]
[1724417798432,2.3135,2670.2,2670.1,0.17135788]
[1724417799130,3.74477,2670.4,2669.9,3.74544]
[1724417799326,3.74477,2670.4,2670.1,0.17134501]
[1724417799531,3.74477,2670.4,2670.0,0.17145864]
[1724417799532,7.48966,2670.4,2670.0,0.17145864]
[1724417799820,7.48966,2670.4,2670.1,0.17134501]
[1724417800033,8.482716,2670.4,2670.1,0.17134501]
[1724417800333,3.7445,2670.6,2670.1,3.74516]
[1724417800634,0.07487018,2670.5,2670.2,0.17123139]
[1724417800782,3.74485,2670.4,2670.2,0.17123139]
[1724417801221,3.74485,2670.4,2670.3,0.17111778]
[1724417801222,3.74483,2670.4,2670.3,0.17111778]
[1724417801521,3.7449,2670.3,2669.7,3.74565]
[1724417801704,3.7449,2670.3,2669.8,3.0]
[1724417801906,4.29504,2670.2,2669.8,3.0]
[1724417802216,8.04015,2670.2,2669.8,3.0]
[1724417802448,4.29504,2670.2,2669.7,3.0]
[1724417802632,5.4152807,2670.2,2669.7,3.0]
[1724417802833,2.4054,2670.3,2669.8,3.74558]
[1724417803152,6.14396,2670.6,2670.0,3.74531]
[1724417803448,2.3994,2670.6,2670.2,3.74503]
[1724417803648,6.14396,2670.6,2670.0,3.7453]
[1724417803848,3.74464,2670.5,2670.0,3.7453]
[1724417804521,4.74097302,2670.5,2670.0,3.7453]
[1724417804873,3.74464,2670.5,2670.0,3.7453]
[1724417805923,2.3994,2670.6,2670.1,3.74516]
[1724417806231,6.21882018,2670.6,2670.1,0.17114341]
[1724417806433,3.74461,2670.5,2670.1,0.17114341]
[1724417806736,2.3994,2670.6,2670.1,0.17114341]
[1724417806934,9.88894,2670.9,2670.2,3.74496]
[1724417807135,7.133684,2670.9,2670.4,3.74471]
[1724417807459,7.133684,2670.9,2670.2,3.74496]
[1724417807460,2.2963,2671.2,2670.6,3.74434]
[1724417807838,2.2963,2671.2,2670.7,0.17044465]
[1724417808223,3.74378,2671.1,2670.7,0.17044465]
[1724417808963,7.48765,2671.1,2670.7,0.17044465]
[1724417809137,0.978395,2671.0,2670.7,0.17044465]
[1724417809342,4.722345,2671.0,2670.7,0.17044465]
[1724417809784,4.722345,2671.0,2670.4,7.48934]
[1724417810038,4.722345,2671.0,2670.8,0.17020244]
[1724417810295,3.74405,2670.9,2670.5,0.17054318]
[1724417810464,3.74405,2670.9,2670.4,3.74467]
[1724417810661,3.74405,2670.9,2670.6,0.17042959]
[1724417810995,0.58721209,2670.8,2670.4,3.74467]
[1724417811169,0.58721209,2670.8,2670.7,0.17031601]
[1724417811493,3.74436,2670.7,2670.2,7.48992]
[1724417811695,3.81923018,2670.7,2670.3,3.0]
[1724417812362,0.07487018,2670.7,2670.2,3.74502]
[1724417812557,0.07487018,2670.7,2670.3,3.0]
[1724417812808,0.58721209,2670.8,2670.3,3.0]
[1724417812975,0.58721209,2670.8,2670.4,7.4894]
[1724417813296,0.58721209,2670.8,2670.4,3.74468]
[1724417813597,0.58721209,2670.8,2670.5,3.74459]
[1724417814434,3.74438,2670.7,2670.3,3.0]
[1724417814576,6.07848,2670.7,2670.3,3.0]
[1724417814976,6.07848,2670.7,2670.3,6.74489]
[1724417815331,6.74504921,2670.7,2670.3,6.74489]
[1724417815489,3.00066921,2670.7,2670.3,6.74489]
[1724417815671,2.3341,2670.7,2670.3,6.74489]
[1724417816634,6.07847,2670.7,2670.3,3.0]
[1724417816838,3.74463,2670.5,2670.0,3.74522]
[1724417817125,3.81950018,2670.5,2670.1,3.0]
[1724417817273,4.8642972,2670.5,2670.1,3.0]
[1724417818234,4.8642972,2670.5,2670.0,3.74522]
[1724417818527,4.8642972,2670.5,2670.0,7.49044]
[1724417818884,4.8642972,2670.5,2670.0,3.74522]
[1724417819080,0.54142972,2670.4,2670.0,7.49046]
[1724417819620,0.54142972,2670.4,2670.0,3.74522]
[1724417820307,0.54142972,2670.4,2669.8,6.74549]
[1724417820308,0.6162999,2670.4,2669.8,6.74549]
[1724417820510,7.21866269,2670.3,2669.9,3.0]
[1724417820823,0.07487018,2670.2,2669.9,3.0]
[1724417821119,6.75295018,2670.3,2670.0,0.17099118]
[1724417821324,2.9331,2670.3,2670.0,0.17099118]
[1724417821621,2.9331,2670.3,2670.1,0.17087755]
[1724417821819,3.98284302,2670.3,2670.1,0.17087755]
[1724417822189,3.98284302,2670.3,2669.8,7.49109]
[1724417822522,3.98284302,2670.3,2669.9,3.74543]
[1724417822727,3.98284302,2670.3,2669.9,3.91653482]
[1724417823417,3.74506,2670.2,2669.9,0.17110482]
[1724417823619,0.78027732,2670.1,2669.7,3.74569]
[1724417823834,0.07487018,2670.0,2669.6,3.74582]
[1724417823990,0.07487018,2670.0,2669.8,0.17121847]
[1724417824189,0.07487018,2670.0,2669.7,0.17133212]
[1724417824416,0.07487018,2670.0,2669.9,0.17120774]
[1724417824615,0.07487018,2670.0,2669.8,0.17132568]
[1724417824616,2.4647,2669.9,2669.8,0.17132568]
[1724417824819,0.07487018,2669.8,2669.4,3.74606]
[1724417825425,0.07487018,2669.8,2669.3,3.74626]
[1724417825940,6.21023,2669.9,2669.4,3.74615]
[1724417826088,2.4647,2669.9,2669.4,3.74605]
[1724417826287,2.4647,2669.9,2669.5,3.746]
[1724417826492,0.46003875,2670.0,2669.6,3.74586]
[1724417826689,2.253,2670.1,2669.6,3.74586]
[1724417826930,4.29492,2670.3,2669.6,3.74579]
[1724417827227,2.253,2670.4,2670.0,3.7453]
[1724417827399,2.253,2670.4,2669.8,7.49099]
[1724417827597,5.99776,2670.4,2669.8,7.49099]
[1724417827802,6.972002,2670.4,2669.8,7.49099]
[1724417828031,6.972002,2670.4,2669.8,3.74548]
[1724417828804,3.7449,2670.3,2669.8,3.74548]
[1724417830117,7.48989,2670.3,2669.8,3.74548]
[1724417830322,3.7449,2670.3,2669.8,3.74548]
[1724417830525,4.8165842,2670.3,2669.8,3.74548]
[1724417831329,8.5615742,2670.3,2669.8,3.74548]
[1724417831653,8.5615842,2670.3,2669.8,3.74548]
[1724417831856,8.5615842,2670.3,2669.7,3.74572]
[1724417832458,3.74504,2670.2,2669.7,3.74572]
[1724417832996,4.8165842,2670.3,2669.7,3.74572]
[1724417833550,8.5615742,2670.3,2669.7,3.74572]
[1724417833731,4.8165842,2670.3,2669.7,3.74572]
[1724417835003,3.74519,2670.1,2669.6,3.74574]
[1724417835198,3.74531,2670.0,2669.7,3.0]
[1724417835442,3.74531,2670.0,2669.5,3.0]
[1724417835600,3.82034018,2669.9,2669.5,3.0]
[1724417835796,2.4521,2670.1,2669.5,6.74598]
[1724417836114,1.24041684,2670.0,2669.6,0.17202479]
[1724417836318,4.98577684,2670.0,2669.6,0.17202479]
[1724417836636,1.31528702,2670.0,2669.6,0.17202479]
[1724417838251,1.31528702,2670.0,2669.6,3.91788479]
[1724417838414,1.31528702,2670.0,2669.7,3.0]
[1724417838759,1.24041684,2670.0,2669.8,0.17179747]
[1724417839134,1.24041684,2670.0,2669.7,3.0]
[1724417839299,0.74377668,2669.9,2669.4,3.74605]
[1724417839503,0.07487018,2669.8,2669.4,3.74605]
[1724417839937,0.07487018,2669.8,2669.4,3.74614]
[1724417840313,0.07487018,2669.8,2669.4,7.49228]
[1724417840917,0.07487018,2669.8,2669.4,3.74614]
[1724417841236,0.58626687,2669.8,2669.4,3.74614]
[1724417841400,2.475,2669.7,2669.4,3.74614]
[1724417843754,0.51139669,2669.8,2669.4,3.74608]
[1724417846160,0.51139669,2669.8,2669.3,3.74629]
[1724417846822,0.51139669,2669.8,2669.4,3.74613]
[1724417847017,2.4486,2669.9,2669.4,3.74613]
[1724417847219,2.4486,2669.9,2669.5,3.74592]
[1724417847470,6.05254,2670.2,2669.5,3.74592]
[1724417847787,2.3074,2670.2,2669.7,3.74573]
[1724417847935,2.3074,2670.2,2669.7,3.74566]
[1724417848138,2.3074,2670.2,2669.6,3.74582]
[1724417848371,3.74454,2670.6,2670.0,3.74525]
[1724417848667,2.4677,2670.7,2670.2,3.74495]
[1724417848830,2.4677,2670.7,2670.2,3.74494]
[1724417849014,2.4677,2670.7,2670.3,3.74482]
[1724417849215,3.74405,2670.9,2670.3,3.74482]
[1724417849450,0.748805,2670.8,2670.3,3.74482]
[1724417849656,0.748805,2670.8,2670.2,7.4899]
[1724417849830,0.748805,2670.8,2670.2,3.74494]
[1724417850163,4.493045,2670.8,2670.2,3.74494]
[1724417850359,3.74444,2670.7,2670.1,3.74517]
[1724417850660,3.74444,2670.7,2670.2,3.74502]
[1724417850661,1.0705185,2670.7,2670.2,3.74502]
[1724417851034,1.0705185,2670.7,2670.3,0.17140947]
[1724417851243,4.8148785,2670.7,2670.3,0.17140947]
[1724417851424,4.8148785,2670.7,2670.4,0.17129587]
[1724417851622,1.0705185,2670.7,2670.1,3.74517]
[1724417852132,1.0705185,2670.7,2670.2,0.17152309]
[1724417852766,4.8148485,2670.7,2670.2,0.17152309]
[1724417852921,0.85590885,2670.6,2670.2,0.17152309]
[1724417853116,2.4356,2670.5,2670.2,0.17152309]
[1724417853722,6.18023,2670.5,2670.2,0.17152309]
[1724417854223,6.18023,2670.5,2670.3,0.17140947]
[1724417854429,3.74475,2670.4,2670.3,0.17140947]
[1724417854760,4.82283588,2670.4,2670.3,0.17116068]
[1724417855266,4.82283588,2670.4,2669.9,3.74536]
[1724417855422,4.82283588,2670.4,2669.9,7.49073]
[1724417855423,1.07808588,2670.4,2669.9,7.49073]
[1724417855623,1.07808588,2670.4,2669.9,3.74536]
[1724417855830,1.07808588,2670.4,2670.0,0.17150154]
[1724417859308,2.4356,2670.5,2670.0,0.17150154]
[1724417859450,3.74424,2670.8,2670.1,3.74505]
[1724417859451,3.74434,2670.7,2670.1,3.74505]
[1724417859652,3.81937018,2670.6,2670.2,0.17130002]
[1724417859956,3.74483,2670.4,2669.8,3.74557]
[1724417860151,3.74483,2670.4,2670.3,0.17118641]
[1724417860505,4.78300702,2670.4,2670.3,0.17118641]
[1724417860789,4.78300702,2670.4,2669.9,6.74544]
[1724417860991,4.78300702,2670.4,2670.3,0.17118641]
[1724417861459,4.78300702,2670.4,2669.9,6.74544]
[1724417861659,4.78300702,2670.4,2670.0,0.17152728]
[1724417861886,0.76753772,2670.3,2670.0,0.17152728]
[1724417864592,4.78300702,2670.4,2670.0,0.17152728]
[1724417870616,0.55,2670.5,2670.0,3.91682728]
[1724417870838,2.3267,2670.8,2670.4,3.74473]
[1724417870981,2.3977,2671.1,2670.4,3.74468]
[1724417871185,6.755718,2671.1,2670.5,0.17084339]
[1724417871431,3.74338,2671.4,2670.6,3.74445]
[1724417871617,3.74338,2671.4,2670.8,3.74411]
[1724417871618,6.07548,2671.4,2670.8,3.74411]
[1724417871995,6.07548,2671.4,2670.9,0.1703805]
[1724417873032,9.81893,2671.4,2670.9,0.1703805]
[1724417873400,6.07548,2671.4,2670.9,0.1703805]
[1724417873605,7.057343,2671.4,2670.9,0.1703805]
[1724417874119,4.725243,2671.4,2670.9,0.1703805]
[1724417876298,8.468673,2671.4,2670.9,0.1703805]
[1724417876830,4.725243,2671.4,2670.9,0.1703805]
[1724417877153,3.74338,2671.4,2670.9,0.1703805]
[1724417877704,7.48683,2671.4,2670.9,0.1703805]
[1724417878167,7.48682,2671.4,2670.9,0.1703805]
[1724417878717,3.7435,2671.3,2670.9,0.1703805]
[1724417879233,3.74338,2671.4,2670.9,0.1703805]
[1724417879234,3.74364,2671.2,2670.9,0.1703805]
[1724417879565,3.74364,2671.2,2670.6,9.94368]
[1724417879769,3.74364,2671.2,2671.0,0.16997535]
[1724417879926,3.74364,2671.2,2670.6,2.4549]
[1724417879927,3.74392,2671.0,2670.6,2.4549]
[1724417880760,3.74414,2670.9,2670.5,3.0]
[1724417880967,3.74414,2670.9,2670.3,6.01071]
[1724417881260,3.74414,2670.9,2670.6,0.17015088]
[1724417881479,0.75629302,2670.8,2670.3,6.01071]
[1724417881679,3.74414,2670.9,2670.7,0.1700373]